Cogmind - Beta 14 @@@ ROGUE MODE // 2024.09.06 @ 13:51:53 Player: rice Result: Destroyed by Y-45 Defender with Heavy Assault Rifle Performance ------------- Evolutions (1) 500 Regions Visited (2) 400 Robots Destroyed (47) 235 Value Destroyed (925) 925 Prototype IDs (0) 0 Alien Tech Used (0) 0 Bonus (0) 0 TOTAL SCORE: 2060 Bonus ------- None Cogmind --------- Core Integrity 0/400 Matter 156/300 Energy 100/100 System Corruption 0% Temperature Cool (9) Movement Core (350) Ox6 Location -9/Materials Parts ------- > --- POWER (1) -------- (None) > --- PROPULSION (2) --- (None) > --- UTILITY (4) ------ Large Storage Unit Transport Network Coupler > --- WEAPON (2) ------- (None) > --- INVENTORY (15) --- Light Ion Engine Light Ion Engine Weapon Shielding Recalibrator Light Assault Rifle Datajack Datajack Peak State ------------ > --- POWER ------------ Light Nuclear Core > --- PROPULSION ------- Light Treads Light Treads > --- UTILITY ---------- Large Storage Unit Sensor Array Transport Network Coupler Recalibrator > --- WEAPON ----------- Light Assault Rifle Light Cannon > --- INVENTORY -------- Ion Engine Light Ion Engine Light Ion Engine Light Treads Weapon Shielding Light Cannon Datajack Datajack [Rating: 14] Favorites ----------- Power Light Ion Engine Engine Light Ion Engine Power Core Light Nuclear Core Propulsion Light Treads Treads Light Treads Flight Unit Flight Unit Utility Sensor Array Device Sensor Array Storage Medium Storage Unit Processor Transport Network Coupler Weapon Light Cannon Energy Gun Medium Laser Ballistic Gun Light Assault Rifle Ballistic Cannon Light Cannon Build | -11 -10 -9 ------- Run | Yrd Mat Mat Slots Evolved 2 | . . 2 Power . | . . . Propulsion . | . . . Utility 2 | . . 2 Weapon . | . . . Parts Attached 47 | 8 22 17 Power 8 | 3 2 3 Engine 7 | 3 2 2 Core 1 | . . 1 Reactor . | . . . Propulsion 10 | 2 5 3 Treads 8 | 2 5 1 Leg . | . . . Wheel . | . . . Hover . | . . . Flight 2 | . . 2 Utility 11 | 1 5 5 Device 7 | . 2 5 Storage 3 | 1 2 . Processor 1 | . 1 . Hackware . | . . . Protection . | . . . Artifact . | . . . Weapon 18 | 2 10 6 Energy Gun 2 | 1 1 . Energy Cannon . | . . . Ballistic Gun 8 | 1 5 2 Ballistic Cannon 8 | . 4 4 Launcher . | . . . Special Weapon . | . . . Impact Weapon . | . . . Slashing Weapon . | . . . Piercing Weapon . | . . . Special Melee Weapon . | . . . Unidentified Prototypes . | . . . Parts Lost 11 | . . 11 Power 2 | . . 2 Propulsion 5 | . . 5 Utility 1 | . . 1 Weapon 3 | . . 3 Highest Loss Streak 3 | . . 3 To Critical Strikes . | . . . Average Slot Usage (%) 95 | . 98 90 Engine 11 | . 13 6 Core 1 | . . 3 Treads 24 | . 27 16 Device 13 | . 10 20 Storage 13 | . 14 11 Processor 5 | . 2 11 Ballistic Gun 7 | . 9 1 Ballistic Cannon 17 | . 17 17 Peak Build Rating 14 | 6 8 14 Average Rating 8 | 4 7 10 On Entrance 4 | . 6 8 Naked Turns . | . . . Heaviest Build 33 | 11 29 33 Greatest Support 46 | 40 40 46 Greatest Overweight (x) 9 | . . 9 Average Overweight (x) . | . . . Largest Inventory Capacity 15 | 8 15 15 Average Capacity 11 | 6 10 15 Most Carried 10 | 1 10 9 Average Carried 7 | . 8 7 Final Capacity 15 | 8 15 15 Final Carried 10 | 1 10 7 Class Distribution -------------------- 70% | Mutant 29% | Scavenger-Mutant Dominant Class ---------------- Mutant | -10/Materials Scavenger-Mutant | -9/Materials Resources | -11 -10 -9 ----------- Run | Yrd Mat Mat Matter Collected 1197 | 261 644 292 Remotely . | . . . Salvage Created 1023 | 78 623 322 Parts 76 | . 46 30 Haulers Intercepted 2 | . 2 . Recyclers Shooed 1 | . 1 . Parts Field Recycled . | . . . Retrieved Matter . | . . . Parts Self-Destructed . | . . . Prevented . | . . . Kills | -11 -10 -9 ------- Run | Yrd Mat Mat Combat Hostiles Destroyed 34 | . 18 16 Guns 9 | . 9 . Cannons 25 | . 9 16 Classes Destroyed 10 | 1 7 2 Worker 1 | . 1 . Builder 2 | . 1 1 Hauler 2 | . 2 . Recycler 2 | 1 1 . Mechanic 1 | . . 1 Operator 2 | . 2 . Watcher 3 | . 2 1 Swarmer 17 | . 9 8 Grunt 16 | . 9 7 Sentry 1 | . . 1 Best Kill Streak 6 | 1 6 5 Combat Bots Only 5 | . 4 5 Max Kills in Single Turn 2 | 1 2 1 Gunslinging 1 | . 1 . Exploded . | . . . Melee . | . . . Uniques/NPCs Destroyed . | . . . Combat | -11 -10 -9 -------- Run | Yrd Mat Mat Hostile Shots Fired 208 | . 67 141 Missed 54 | . 21 33 Damage Taken 1744 | . 485 1259 Core 513 | . 104 409 Absorbed by Shields . | . . . Core Remaining (%) 79 | 100 58 . Volleys Fired 115 | 3 64 48 Largest 2 | 2 2 2 Hottest 70 | 70 70 70 Shots Fired 219 | 6 128 85 Gun 57 | 6 46 5 Cannon 162 | . 82 80 Launcher . | . . . Special . | . . . Kinetic 211 | 3 123 85 Thermal 8 | 3 5 . Explosive . | . . . Electromagnetic . | . . . Robot Hit Streak 11 | 6 9 11 Robot Miss Streak 4 | . 4 4 Penetration Max . | . . . Secondary Targets 4 | . 4 . Max Gunslinging Chain 1 | . 1 . Shots Hit Robots 127 | 6 70 51 Core Hits 54 | 2 31 21 Critical Kills 1 | . 1 . Critical Parts Destroyed 1 | . 1 . Critical Strikes 10 | 1 4 5 Burn 2 | 1 1 . Destroy 2 | . 2 . Blast 6 | . 1 5 Melee Attacks . | . . . Impact . | . . . Slashing . | . . . Piercing . | . . . Sneak Attacks . | . . . Combat Hostiles . | . . . Follow-up Attacks . | . . . Damage Inflicted 2036 | 67 1058 911 Guns 409 | 67 325 17 Cannons 1619 | . 733 886 Explosions . | . . . Melee . | . . . Ramming 8 | . . 8 Kinetic 1953 | 29 1021 903 Thermal 75 | 38 37 . Explosive . | . . . Electromagnetic . | . . . Impact . | . . . Slashing . | . . . Piercing . | . . . Highest Corruption . | . . . Average Corruption . | . . . Corruption Purged . | . . . Corruption Blocked . | . . . Overload Shots . | . . . Overflow Damage 2 | . 2 . Projectiles 2 | . 2 . Explosions . | . . . Melee . | . . . Knockbacks 21 | . 12 9 Impact . | . . . Kinetic 20 | . 12 8 Secondary 1 | . . 1 Self-Inflicted Damage . | . . . Shots . | . . . Rammed 3 | . 1 2 Targets Rammed 4 | . 1 3 Kicked . | . . . Crushed 1 | . . 1 Highest Temperature 120 | 50 120 96 Average Temperature 28 | 26 30 25 Received Heat Transfer 561 | . 201 360 Siege Activations . | . . . Robots Corrupted . | . . . Combat Hostiles . | . . . Parts Fried . | . . . Impact Corruptions . | . . . Robots Melted . | . . . Combat Hostiles . | . . . Parts Melted 1 | 1 . . Heat Transferred 370 | 185 185 . Parts Sabotaged . | . . . Parts Stolen . | . . . Parts Stripped . | . . . Power Chain Reactions . | . . . Alert | -11 -10 -9 ------- Run | Yrd Mat Mat Peak Influence 352 | 5 215 352 Initial 57 | . 3 57 Average 109 | . 80 195 Maximum Alert Level 1 | . 1 1 Low Security (%) 81 | 100 88 62 Level 1 18 | . 11 37 Level 2 . | . . . Level 3 . | . . . Level 4 . | . . . Level 5 . | . . . High Security . | . . . Max Security . | . . . Squads Dispatched 5 | . 3 2 Investigation 1 | . 1 . Extermination . | . . . Reinforcement 4 | . 2 2 Assault . | . . . Garrison . | . . . Intercept . | . . . Searches Triggered . | . . . Construction Impeded . | . . . Haulers Reinforced . | . . . Active Scanning Responses . | . . . Cargo Convoy Interrupts . | . . . Stealth | -11 -10 -9 --------- Run | Yrd Mat Mat Distress Signals 7 | . 3 4 Communications Jammed . | . . . Distress Signals . | . . . Times Spotted 66 | . 34 32 Peak Tracking Total 6 | . 6 5 Tactical Retreats 6 | . 5 1 Traps | -11 -10 -9 ------- Run | Yrd Mat Mat Traps Triggered 5 | . 5 . Indirectly . | . . . Trap Hack Attempts . | . . . Triggered . | . . . Disarmed 6 | . 6 . Reprogrammed . | . . . Reused . | . . . Traps Extracted . | . . . Installed . | . . . Triggered . | . . . Machines | -11 -10 -9 ---------- Run | Yrd Mat Mat Machines Disabled 2 | . . 2 Max in Single Turn 1 | . . 1 Machines Repaired . | . . . Machines Dismantled . | . . . Machines Sabotaged . | . . . Overloaded Fab Kills . | . . . Hacking | -11 -10 -9 --------- Run | Yrd Mat Mat Machines Accessed 6 | . 4 2 Terminals 5 | . 3 2 Fabricators . | . . . Repair Stations . | . . . Recycling Units 1 | . 1 . Scanalyzers . | . . . Garrison Access . | . . . Total Hacks 9 | . 6 3 Successful 5 | . 4 1 Failed 4 | . 2 2 Catastrophic . | . . . Database Lockouts . | . . . Manual . | . . . Terminals 8 | . 5 3 Fabricators . | . . . Repair Stations . | . . . Recycling Units 1 | . 1 . Scanalyzers . | . . . Garrison Access . | . . . Terminal Hacks 4 | . 3 1 Record 1 | . 1 . Alert Level 1 | . 1 . Disarm Traps 1 | . 1 . Hauler Manifests 1 | . . 1 Fabricator Hacks . | . . . Repair Station Hacks . | . . . Recycling Unit Hacks 1 | . 1 . Report Inventory 1 | . 1 . Scanalyzer . | . . . Garrison Access Hacks . | . . . Unauthorized Hacks . | . . . Terminals . | . . . Fabricators . | . . . Repair Stations . | . . . Recycling Units . | . . . Scanalyzers . | . . . Garrison Access . | . . . Data Cores Recovered . | . . . Used . | . . . Hacking Detections 1 | . 1 . Full Trace Events . | . . . Feedback Events . | . . . Feedback Blocked . | . . . Robot Schematics Acquired . | . . . Robots Built . | . . . Authchips . | . . . Time . | . . . Total Robot Build Rating . | . . . Part Schematics Acquired . | . . . Parts Built . | . . . Authchips . | . . . Time . | . . . Total Part Build Rating . | . . . Parts Repaired . | . . . Time . | . . . Parts Recycled . | . . . Recycled Matter . | . . . Retrieved Matter . | . . . Retrieved Components . | . . . Parts Scanalyzed . | . . . Part Schematics Acquired . | . . . Parts Damaged . | . . . Bothacking | -11 -10 -9 ------------ Run | Yrd Mat Mat Used RIF Installer . | . . . Robots Hacked . | . . . Non-combat . | . . . Combat . | . . . Robot Hacks Applied . | . . . Relay Couplers Released . | . . . Fabnet Peak Effective % . | . . . Robots Rewired . | . . . Allies Hacked . | . . . Hacks Repelled . | . . . Allies | -11 -10 -9 -------- Run | Yrd Mat Mat Total Allies . | . . . Largest Group . | . . . Highest-Rated Group . | . . . Highest-Rated Ally . | . . . Total Orders . | . . . Ally Attacks . | . . . Total Damage . | . . . Kills . | . . . Allies Corrupted . | . . . Allies Melted . | . . . Intel | -11 -10 -9 ------- Run | Yrd Mat Mat Robot Analysis Total . | . . . Derelict Logs Recovered . | . . . Drone Launches . | . . . Drone Recoveries . | . . . Exploration | -11 -10 -9 ------------- Run | Yrd Mat Mat Turns Passed 2936 | 168 1898 870 Spaces Moved 1430 | 99 999 332 Core 28 | 13 . 15 Treads 1387 | 86 999 302 Legs . | . . . Wheels . | . . . Hover . | . . . Flight 15 | . . 15 Fastest Speed 50 | 50 160 160 Average Speed 167 | 145 160 197 Slowest Speed 600 | 160 160 600 Overloaded Moves . | . . . Propulsion Burnouts . | . . . Robots Hopped . | . . . Cave-ins Triggered . | . . . Exploration Rate (%) 38 | 4 92 20 Regions Visited 2 Branch Regions . Pre-discovered Areas . | . . . Known Exits Taken . | . . . Unknown Exits Taken 2 | 1 1 . Scrap Searched . | . . . Spaces Dug . | . . . Terrain Destroyed . | . . . Melee . | . . . Projectile . | . . . AOE . | . . . Terrain Rammed . | . . . Walls Destroyed . | . . . Machines Disabled . | . . . Actions | -11 -10 -9 --------- Run | Yrd Mat Mat Total 1746 | 114 1171 461 Wait 119 | 4 60 55 Move 1428 | 98 998 332 Hop . | . . . Pick Up 18 | 1 16 1 Fast Attach 16 | 6 8 2 Attach 9 | . 1 8 Detach 3 | . . 3 Swap 22 | 2 13 7 Drop 12 | . 10 2 Fire 115 | 3 64 48 Melee . | . . . Ram . | . . . Kick . | . . . Crush 4 | . 1 3 Escape Stasis . | . . . Rewire . | . . . Trap . | . . . Miscellaneous . | . . . Route ------- -11/Scrapyard -10/Materials (discovered 4 exits: *Mat x3 / [*Min]) -9/Materials (discovered 1 exit: [*Mat]) History --------- Turn | Location | Event 4 | -11/Scrapyard | Discovered new exit (range 16) 169 | -11/Scrapyard | Entered Materials 323 | -10/Materials | Build established: Mutant 324 | -10/Materials | Discovered new exit (range 16) 788 | -10/Materials | Discovered new exit (range 13) 1263 | -10/Materials | Discovered new exit (range 12) 1922 | -10/Materials | Discovered new exit (range 4) 2067 | -10/Materials | Entered another Materials area 2067 | -9/Materials | Evolved 2 slots: Utility x2 2375 | -9/Materials | Build established: Scavenger-Mutant 2431 | -9/Materials | Discovered new exit (range 8) 2829 | -9/Materials | Lost 3 parts (1p1n1w) 2887 | -9/Materials | Core integrity fell below 50% 2912 | -9/Materials | Core integrity fell below 20% 2937 | -9/Materials | Destroyed by Y-45 Defender with Heavy Assault Rifle Last Messages --------------- 02804_ R-06 Scavenger collects Flight Unit. 02805_ S-10 Pest destroyed. 02807_ R-06 Scavenger collects Lgt. Assault Rifle. 02812_ Material Compactor disabled. To regain energy, simply wait via the mouse wheel, '.', or KP5. Also make sure your per-turn energy generation is a net positive, and consider deactivating power-draining parts if not. 02858_ Hadron Collector disabled. 02858_ Lgt. Cannon destroyed. 02861_ Flight Unit destroyed. 02873_ Hadron Collector disabled. 02879_ Critical hit (Burn: +37). 02902_ Ion Engine destroyed. 02909_ Acquired VTOL Module. 02911_ Sensor Array destroyed. 02914_ Critical hit (Burn: +37). 02931_ VTOL Module destroyed. Map ----- +----------------------------------------------------+ | ??????????????????????????????? | | ??????????????????????????????? | | ??????????????????????????????? | | ??????????????????????????????? | | ??????????????????????????????? | | ??????????????????????????????? | | ??????????????????????????????? | | ??????????????????????????????? | | ??????????????????????????????? | | ???????????????????# ?????????? | | ???????????????????+ ?????????? | | ???????????????????# ?????????? | | ???????????????????# ????????? | | ???????????????????# ????????? | | ?????????????####### ????????? | | ??????????? ????????? | | ??????????# % ????????? | | ??????????# % ????????? | | ??????????# """ #???????? | | ??????????# """"" #???????? | | ??????????# """""% ######### | | ????????### """"" # %# | | ??????? + "" % % # # | | ???????????# %+ """ # | | ???????????# # """ # | | ############ # @""" # | | # # | | "" # # | | "T # " # | | ###T####### %%"" # "" # | | #?###?????# # """ # | | #?????????#%% # Y""" # | | #????????##/####### # # | | ?????????# % [ #?# # # | | ?????????# % #?# ###### # | | ?????????# "" #?# #????### | | ?????????# """ #?# ######?? | | ?????????# """ #?# #?? | | ?????????# % !#?# #?? | | ?####????####/##### !! #?? | | ?#T"#????# !| #?? | | ## "###### !< #?? | | #?? | | ###########/####### #?? | | ????????# ! # #?? | | ????????#% # #?? | | ????????# + #####+###?? | | ????????# # #?????????? | | ????????# # #?????????? | | ????????# # #?????????? | +----------------------------------------------------+ Best States ------------- Heat Dissipation 28 Energy Generation 14 Energy Capacity 250 Matter Stores 300 Matter Capacity 300 Sight Range 16 Robot Scan Range 14 Terrain Scan Density 10 Additional Mass Support 6 Evasion (%) 40 Recoil Reduction 2 Item Schematics ----------------- None Robot Schematics ------------------ None Fabricated ------------ Nothing Alien Tech Used ----------------- None Achievements -------------- None Challenges ------------ None Game ------ Seed SwarmKineticMediator Manual? 0 Play Time 00:38:12 Cumulative 11.6 hours Start 2024.09.06 @ 13:14:21 End 2024.09.06 @ 13:51:53 Sessions 1 Manual Loads 0 Difficulty Rogue Special Mode None Game No. 31 Rogue 31 Adventurer 0 Explorer 0 Win Type - Total 0 Types 0/0/0/0/0/0/0/0/0 Lore% 3 Gallery% 19 Achievement% 14 Wizard Run 0 Options --------- Layout 1 ASCII 0 Keyboard 0 Movement Numpad Keybinds 0 Fullscreen 1 Font 24/Smallcaps Map View 50x35 Zoom Use 0% Tactical HUD 1 Map Filters NONE Filters NONE Steam 1 RUN: db53319f-7900-4b53-89c0-5063337a0ade